fUSD/lending_fUSD_20240318
["ID","MTS","AMOUNT","RATE_DAILY","PERIOD"]
[319451698,1710778239533,-200.0,0.00021823,2]
[319451699,1710778239543,-529.0,0.00021832,2]
[319451700,1710778239553,-1000.0,0.000219,2]
[319451701,1710778239564,-19654.5731,0.000219,2]
[319451702,1710778239574,-5172.0,0.000219,2]
[319451703,1710778239584,-1000.0,0.000219,2]
[319451704,1710778239595,-5480.0,0.000219,2]
[319451705,1710778239606,-250.0,0.00021918,2]
[319451706,1710778239618,-1517.2,0.00021918,10]
[319451707,1710778239630,-155.0,0.00021918,2]
[319451708,1710778239640,-230.0341939,0.00021951,2]
[319451709,1710778239653,-800.0,0.00021973,2]
[319451710,1710778239663,-20090.1909701,0.00021995,2]
[319451711,1710778239674,-1775.4986398,0.00021995,2]
[319451712,1710778239684,-1253.216868,0.00021995,2]
[319451713,1710778239695,-850.03475682,0.00021999,2]
[319451714,1710778239706,-22263.67173706,0.00022,2]
[319451722,1710778240290,-639.13374188,0.00022,2]
[319451723,1710778240303,-1020.4,0.00022,2]
[319451724,1710778240354,-6826.40206686,0.00022,2]
[319451732,1710778243111,-413.8784653,0.00022,2]
[319451734,1710778243240,-18836.5139889,0.00022,2]
[319451735,1710778243250,-20000.0,0.00022,3]
[319451736,1710778243261,-20000.0,0.00022,3]
[319451737,1710778243271,-105031.87548746,0.00022,2]
[319451738,1710778243376,-6190.9065113,0.00022,2]
[319451739,1710778243494,-2478.93716718,0.00022,2]
[319451747,1710778246188,-425.01737841,0.00021999,2]
[319451748,1710778246197,-429.82029086,0.00022,2]
[319451749,1710778246208,-3423.78747849,0.00022,2]
[319451752,1710779245102,-151.0,0.00013835,2]
[319451753,1710779245123,-151.0,0.00015342,2]
[319451754,1710779245144,-19.77658747,0.00016849,2]
[319451758,1710779356117,-131.22341253,0.00016849,2]
[319451759,1710779356137,-750.0,0.00017,3]
[319451760,1710779356156,-151.0,0.00018356,2]
[319451761,1710779356175,-236.4,0.00018481,2]
[319451762,1710779356196,-1000.0,0.00019344,2]
[319451763,1710779356214,-1000.0,0.00019373,2]
[319451764,1710779356233,-1411.55628399,0.000195,2]
[319451772,1710779433004,-1000.0,0.00019499,2]
[319451773,1710779433016,-390.08668024,0.000195,2]
[319451774,1710779433028,-2659.34613958,0.000195,2]
[319451775,1710779433072,-3537.65,0.000195,2]
[319451776,1710779433185,-1594.45954,0.000195,2]
[319451785,1710779438443,-2882.03253432,0.000195,2]
[319451786,1710779438453,-150.0,0.000195,2]
[319451787,1710779438463,-150.0,0.000195,2]
[319451788,1710779438473,-288.79567231,0.000195,2]
[319451789,1710779438482,-746.33665963,0.00019789,2]
[319451790,1710779438492,-151.0,0.00019863,2]
[319451791,1710779438502,-158.1,0.000202,2]
[319451792,1710779438516,-250.0,0.00020269,2]
[319451793,1710779438525,-173.51,0.00020278,2]
[319451794,1710779438535,-1851.09938763,0.00020301,2]
[319451795,1710779438547,-2039.8969342,0.00020301,2]
[319451796,1710779438572,-596.04655466,0.00020301,2]
[319451797,1710779438620,-792.15095479,0.00020301,2]
[319451798,1710779438636,-2753.98548941,0.00020301,2]
[319451799,1710779438668,-444.78067931,0.00020301,2]
[319451800,1710779438680,-266.22,0.00020303,2]
[319451801,1710779438690,-152.20152995,0.00020359,2]
[319451802,1710779438701,-152.20152995,0.00020359,2]
[319451803,1710779438710,-17.36091356,0.00020359,2]
[319451829,1710779440320,-134.84061639,0.00020359,2]
[319451831,1710779440331,-152.20152991,0.00020359,2]
[319451833,1710779440341,-155.293955,0.00020359,30]
[319451835,1710779440351,-558.3938987,0.00020371,2]
[319451838,1710779440364,-1163.9128954,0.00020371,2]
[319451842,1710779440461,-228.3432059,0.00020371,2]
[319451843,1710779440471,-123.08487685,0.00020399,2]
[319451844,1710779440483,-28.56512315,0.00020399,2]
[319451845,1710779440493,-500.0,0.00020399,2]
[319451846,1710779440502,-167.91,0.00020492,2]
[319451847,1710779440515,-156.58007557,0.00020673,2]
[319451848,1710779440526,-236.4,0.00020745,2]
[319451849,1710779440535,-305.6037391,0.00020755,2]
[319451850,1710779440548,-694.3962609,0.00020755,2]
[319451851,1710779440558,-1048.49853906,0.00020773,2]
[319451852,1710779440651,-12753.22423378,0.00020773,2]
[319451853,1710779440663,-273.37007264,0.00020773,2]
[319451854,1710779440679,-422.18715452,0.00020773,2]
[319451855,1710779440688,-670.09147357,0.00020795,2]
[319451867,1710779440817,-329.90852643,0.00020795,2]
[319451869,1710779440828,-473.49124546,0.00020889,2]
[319451872,1710779440840,-707.41010173,0.00020889,2]
[319451874,1710779440850,-1113.31,0.00021096,2]
[319451878,1710779440859,-785.26101642,0.00021096,2]
[319451881,1710779440878,-4781.14898358,0.00021096,2]
[319451883,1710779440887,-191.11,0.00021343,2]
[319451885,1710779440897,-152.0,0.0002137,2]
[319451887,1710779440906,-167.91,0.0002156,2]
[319451889,1710779440915,-14828.76,0.00021665,2]
[319451891,1710779440924,-150.0,0.00021766,2]
[319451892,1710779440934,-230.0341939,0.00021769,2]
[319451894,1710779440944,-475.069,0.0002179,2]
[319451895,1710779440954,-150.0,0.00021795,2]
[319451896,1710779440963,-587.95114448,0.000218,2]
[319451897,1710779440972,-358.4545805,0.000218,2]
[319451898,1710779440982,-200.0,0.00021823,2]
[319451899,1710779440991,-200.0,0.00021824,2]
[319451900,1710779441000,-800.0,0.00021824,2]
[319451901,1710779441010,-200.0,0.00021824,2]
[319451902,1710779441023,-200.0,0.00021824,2]
[319451903,1710779441033,-500.0,0.00021824,2]
[319451904,1710779441043,-200.0,0.00021824,2]
[319451905,1710779441053,-522536.66798903,0.0002188,2]
[319451917,1710779443762,-154.0,0.00013835,2]
[319451918,1710779443773,-843.650002,0.0002188,2]
[319451919,1710779443800,-273.59169232,0.0002188,2]
[319451920,1710779443812,-1300.42469049,0.0002188,2]
[319451921,1710779443844,-24899.61724908,0.0002188,2]
[319451922,1710779443887,-4006.42213649,0.0002188,2]
[319451923,1710779443897,-3030.88621509,0.0002188,2]
[319451924,1710779443909,-645.96337052,0.0002188,2]
[319451925,1710779443940,-8110.2,0.0002188,2]
[319451970,1710779446503,-33149.56699677,0.0002188,2]
[319451973,1710779446526,-74213.09389668,0.0002188,2]
[319451980,1710779446600,-3314.39966453,0.0002188,2]
[319451982,1710779446612,-1388.17724184,0.0002188,2]
[319451985,1710779446640,-0.01539756,0.0002188,2]
[319451996,1710780556328,-1835.0,0.00015,2]
[319451997,1710780556349,-194.08471506,0.00018814,2]
[319452002,1710780631865,-28.17528494,0.00018814,2]
[319452003,1710780631875,-4568.00035827,0.00019789,5]
[319452004,1710780631884,-150.0,0.00020329,2]
[319452007,1710780631895,-152.20152995,0.00020361,2]
[319452008,1710780631904,-152.20152995,0.00020361,2]
[319452011,1710780631914,-152.20152995,0.00020361,2]
[319452012,1710780631923,-1026.0,0.00020361,5]
[319452013,1710780631932,-1026.0,0.00020361,5]
[319452014,1710780631941,-1026.0,0.00020361,5]
[319452015,1710780631951,-1026.0,0.00020361,5]
[319452016,1710780631965,-1026.0,0.00020361,5]
[319452017,1710780631978,-1027.94825487,0.00020361,5]
[319452018,1710780631992,-158.11,0.00020585,2]
[319452019,1710780632002,-165.39,0.00020625,2]
[319452020,1710780632013,-171.78,0.00020678,2]
[319452021,1710780632023,-500.0,0.00020689,2]
[319452022,1710780632033,-500.0,0.00020689,2]
[319452023,1710780632043,-250.0,0.0002069,2]
[319452024,1710780632053,-693.56,0.000207,2]
[319452025,1710780632063,-150.0,0.000207,2]
[319452026,1710780632073,-150.66,0.000207,2]
[319452027,1710780632083,-156.15,0.00020759,2]
[319452028,1710780632093,-166.4,0.00020796,2]
[319452029,1710780632102,-1000.0,0.000208,2]
[319452030,1710780632112,-150.0,0.00021,2]
[319452031,1710780632121,-222.26,0.00021078,2]
[319452032,1710780632131,-927.75,0.00021096,2]
[319452033,1710780632140,-4638.67,0.00021096,2]
[319452034,1710780632150,-346.73,0.00021178,2]
[319452035,1710780632159,-1104.32,0.00021178,2]
[319452036,1710780632168,-295.43,0.00021178,2]
[319452037,1710780632178,-150.0,0.00021178,2]
[319452038,1710780632187,-1026.0,0.00021236,2]
[319452039,1710780632197,-153.0,0.0002137,2]
[319452040,1710780632206,-0.09951048,0.0002137,2]
[319452041,1710780632247,-158.90048952,0.0002137,2]
[319452042,1710780632257,-1081.76850934,0.00021442,2]
[319452043,1710780632267,-1159.6444364,0.0002173,2]
[319452046,1710780637604,-3845.73767984,0.0002173,2]
[319452047,1710780637616,-4994.61788376,0.0002173,2]
[319452048,1710780637626,-4181.99133434,0.0002178,2]
[319452049,1710780637638,-3170.8928682,0.0002178,2]
[319452050,1710780637649,-2025.270672,0.0002178,2]
[319452051,1710780637661,-2005.1953642,0.0002178,2]
[319452071,1710780639566,-169.15,0.00020949,10]
[319452073,1710780639576,-579.85,0.0002178,2]
[319452082,1710780639685,-676.59995574,0.0002178,2]
[319452083,1710780639827,-986.35365608,0.0002178,2]
[319452084,1710780639866,-344.6397612,0.0002178,2]
[319452085,1710780639875,-10.6802388,0.000218,2]
[319452093,1710780642597,-153.53714864,0.000218,2]
[319452094,1710780642606,-200.0,0.00021823,2]
[319452095,1710780642616,-53.96481258,0.00021823,2]
[319452096,1710780642664,-146.03518742,0.00021823,2]
[319452097,1710780642674,-200.0,0.00021824,2]
[319452098,1710780642683,-200.0,0.00021824,2]
[319452099,1710780642692,-800.0,0.00021824,2]
[319452100,1710780642702,-88.15661937,0.00021824,2]
[319452101,1710780642846,-111.84338063,0.00021824,2]
[319452102,1710780642855,-200.0,0.00021824,2]
[319452103,1710780642866,-200.0,0.00021824,2]
[319452104,1710780642875,-500.0,0.00021824,2]
[319452105,1710780642885,-200.0,0.00021824,2]
[319452106,1710780642894,-1381.0136,0.0002186,2]
[319452107,1710780642903,-403.16909508,0.00021879,2]
[319452304,1710780645666,-125.98693497,0.00021879,2]
[319452305,1710780645675,-1624.01304003,0.0002188,2]
[319452306,1710780645731,-433.82281872,0.0002188,2]
[319452307,1710780645744,-663.24190622,0.0002188,2]
[319452308,1710780670071,1737.09965971,0.00014,2]
[319452309,1710781565808,267.66,0.00011318,2]
[319452310,1710781571298,177.25,0.00010544,2]
[319452311,1710781746147,2035.67111701,0.00010544,2]
[319452312,1710781762186,-150.0,0.00012768,2]
[319452313,1710781762208,-12768.634618,0.00012769,2]
[319452314,1710781762231,-171.55067317,0.00012834,2]
[319452315,1710781762253,-157.60180404,0.00013,2]
[319452316,1710781762276,-178.29,0.00013,2]
[319452317,1710781762299,-500.0,0.000131,4]
[319452318,1710781762327,-250.0,0.00013197,2]
[319452319,1710781762348,-173.76,0.00013199,2]
[319452320,1710781762371,-1100.0,0.000132,4]
[319452321,1710781762391,-223.85,0.00013292,2]
[319452322,1710781762413,-282.9406,0.00013298,2]
[319452323,1710781762436,-1700.0,0.000133,4]
[319452324,1710781762457,-200.0,0.00013357,2]
[319452325,1710781762479,-2200.0,0.000134,4]
[319452326,1710781762502,-14094.32,0.00013416,2]
[319452327,1710781762523,-2800.0,0.000135,4]
[319452328,1710781762550,-356.31,0.00013548,2]
[319452329,1710781762571,-1494.99,0.00013548,2]
[319452330,1710781762594,-267.66,0.00013582,2]
[319452331,1710781762615,-500.0,0.000136,4]
[319452332,1710781762638,-3502.12,0.00013699,2]
[319452333,1710781762659,-207.68,0.00013699,2]
[319452334,1710781762680,-250.0,0.00013699,2]
[319452335,1710781762701,-260.53,0.00013699,2]
[319452336,1710781762722,-499.99,0.00013699,2]
[319452337,1710781762743,-500.0,0.000137,5]
[319452338,1710781762765,-166.8,0.00013701,2]
[319452339,1710781762790,-500.0,0.000138,5]
[319452340,1710781762811,-260.53,0.00013836,2]
[319452341,1710781762833,-156.76972417,0.000139,2]
[319452342,1710781762855,-500.0,0.000139,5]
[319452343,1710781762876,-8653.77802062,0.00013901,2]
[319452344,1710781773111,-16801.7048832,0.00013901,2]
[319452345,1710781773135,-2183.422515,0.00013901,2]
[319452346,1710781773157,-3226.09122387,0.00013901,2]
[319452347,1710781773180,-9896.5085769,0.00013901,2]
[319452348,1710781773201,-713.75067884,0.00013901,2]
[319452371,1710781831685,-356.48,0.00013,2]
[319452372,1710781831694,-459.10805588,0.00013199,2]
[319452373,1710781831750,-716.26194412,0.00013199,2]
[319452374,1710781831759,-155.0,0.00013899,2]
[319452375,1710781831769,-2199.28206236,0.00013899,2]
[319452376,1710781831778,-163.3317181,0.000139,2]
[319452377,1710781831788,-2106.52427542,0.000139,2]
[319452378,1710781831800,-1051.92183902,0.000139,2]
[319452379,1710781831812,-1000.715,0.000139,2]
[319452380,1710781831872,-2799.73532316,0.000139,2]
[319452381,1710781831881,-260.53,0.00013973,2]
[319452382,1710781831890,-294.68467684,0.00013998,2]
[319452383,1710781831929,-517.9614323,0.00013998,2]
[319452384,1710781831940,-803.1102161,0.00013998,2]
[319452385,1710781831981,-1142.43469992,0.00013998,2]
[319452386,1710781831990,-498.46338301,0.00013998,2]
[319452387,1710781832000,-550.31330295,0.00013998,2]
[319452388,1710781832009,-704.0976508,0.00013998,2]
[319452389,1710781832019,-157.78882466,0.00013998,2]
[319452390,1710781832029,-4856.37077113,0.00013998,2]
[319452391,1710781832038,-1936.63507125,0.00013998,2]
[319452392,1710781832050,-5058.27115113,0.00013998,2]
[319452393,1710781832074,-326.33051176,0.00013998,2]
[319452394,1710781832091,-936.19377434,0.00013998,2]
[319452395,1710781832103,-926.28032574,0.00013998,2]
[319452396,1710781832112,-155.0,0.00013999,2]
[319452397,1710781832121,-3299.45955579,0.00013999,2]
[319452398,1710781832131,-2339.26011847,0.00014,2]
[319452405,1710781832235,-1535.76926331,0.00014,2]
[319452407,1710781832247,-73738.67556308,0.00014,2]
[319452409,1710781832260,-300.63244187,0.00014,2]
[319452410,1710781832304,-1020.0,0.00014,2]
[319452435,1710781837715,-1780.0858619,0.00014,2]
[319452437,1710781837727,-3696.923446,0.00014,2]
[319452439,1710781837738,-348.895,0.00014,2]
[319452440,1710781837768,-1392662.2941166,0.00014,2]
[319452441,1710781837780,-568.94985213,0.00014,2]
[319452442,1710781837791,-453.30570109,0.00014,2]
[319452443,1710781837873,-1322.84694697,0.00014,2]
[319452444,1710781837888,-957.46,0.00014,2]
[319452445,1710781837901,-170373.23799451,0.00014,2]
[319452446,1710781837912,-351.79,0.00014,2]
[319452447,1710781837925,-68224.33356287,0.00014,2]
[319452448,1710781838127,-26622850.39282163,0.00014,2]
[319452449,1710781838137,-11329.41073966,0.00014,2]
[319452450,1710781838147,-156.76972409,0.0001403,2]
[319452451,1710781838157,-210.0,0.00014045,2]
[319452452,1710781838169,-260.53,0.0001411,2]
[319452453,1710781838183,-156.76972409,0.0001416,2]
[319452454,1710781838193,-150.99,0.0001416,2]
[319452455,1710781838203,-260.53,0.00014247,2]
[319452456,1710781838213,-156.76972409,0.0001429,2]
[319452457,1710781838224,-520.01,0.00014384,2]
[319452458,1710781838234,-156.76972409,0.0001442,2]
[319452460,1710781838244,-156.76972409,0.0001455,2]
[319452462,1710781838254,-156.76972409,0.0001468,2]
[319452464,1710781838264,-1581.18,0.000147,2]
[319452466,1710781838274,-156.76972409,0.0001481,2]
[319452469,1710781838284,-1184.0,0.000149,5]
[319452471,1710781838294,-156.76972409,0.0001494,2]
[319452473,1710781838303,-1693665.08086199,0.00015,2]
[319452481,1710781838386,-2577.38046591,0.00015,2]
[319452484,1710781838399,-12421.40022865,0.00015,2]
[319452486,1710781838411,-683.32258535,0.00015,2]
[319452488,1710781838423,-20571.33797726,0.00015,2]
[319452491,1710781838452,-864.78847124,0.00015,2]
[319452494,1710781838470,-320.55082822,0.00015,2]
[319452496,1710781838483,-335.5,0.00015,2]
[319452498,1710781838495,-688.5,0.00015,2]
[319452500,1710781838507,-522.95211112,0.00015,2]
[319452501,1710781838519,-965.83846625,0.00015,2]
[319452546,1710781839744,-402021.03474078,0.00015,2]
[319452550,1710781839754,-286.61,0.00015068,2]
[319452553,1710781839764,-156.76972409,0.0001507,2]
[319452556,1710781839774,-5000.0,0.0001511,2]
[319452559,1710781839784,-156.76972409,0.000152,2]
[319452562,1710781839794,-156.13,0.00015223,2]
[319452566,1710781839803,-1922.86883992,0.000153,2]
[319452569,1710781839813,-1922.86883992,0.000153,2]
[319452572,1710781839823,-156.13,0.00015311,2]
[319452575,1710781839833,-156.13,0.000154,2]
[319452577,1710781839847,-293.0,0.0001545,2]
[319452581,1710781839857,-156.13,0.00015488,2]
[319452584,1710781839866,-156.13,0.00015576,2]
[319452587,1710781839876,-156.13,0.00015664,2]
[319452590,1710781839885,-156.13,0.00015752,2]
[319452593,1710781839895,-177.25,0.00015815,2]
[319452596,1710781839905,-156.13,0.0001584,2]
[319452600,1710781839915,-267.66,0.00015846,2]
[319452603,1710781839924,-156.13,0.00015928,2]
[319452606,1710781839934,-156.13,0.00016017,2]
[319452609,1710781839944,-166.8,0.00016441,2]
[319452612,1710781839953,-150.0,0.00017498,2]
[319452615,1710781839963,-150.0,0.00017498,2]
[319452618,1710781839973,-150.0,0.00017498,2]
[319452621,1710781839983,-150.0,0.00017498,2]
[319452624,1710781839992,-150.0,0.00017498,2]
[319452627,1710781840001,-150.0,0.00017498,2]
[319452630,1710781840011,-150.0,0.00017498,2]
[319452633,1710781840020,-264.27380754,0.00017498,2]
[319452636,1710781840030,-2910.65,0.00017757,2]
[319452639,1710781840040,-267.66,0.0001811,2]
[319452642,1710781840050,-155.489461,0.00018356,2]
[319452645,1710781840059,-25902.22550677,0.000189,2]
[319452648,1710781840069,-1000.0,0.00019162,2]
[319452651,1710781840079,-500.0,0.00019178,2]
[319452655,1710781840092,-158.11,0.00019178,2]
[319452658,1710781840102,-155.489461,0.00019178,2]
[319452661,1710781840112,-166.8,0.0001918,2]
[319452665,1710781840121,-180.0,0.00019288,2]
[319452668,1710781840131,-43961.63287789,0.0002,2]
[319452670,1710781840140,-1754.32004483,0.0002,2]
[319452672,1710781840150,-52300.1,0.0002,4]
[319452677,1710781840167,-986.05386062,0.0002,2]
[319452680,1710781840179,-155.489461,0.0002,2]
[319452683,1710781840189,-176.42,0.00020126,2]
[319452686,1710781840199,-1378.0,0.00020255,2]
[319452689,1710781840209,-2560.0,0.00020255,2]
[319452692,1710781840219,-1090.563,0.00020255,2]
[319452695,1710781840229,-457.0,0.00020255,2]
[319452698,1710781840239,-536.0,0.00020255,2]
[319452701,1710781840248,-1217.0,0.00020255,2]
[319452704,1710781840258,-270.778,0.00020255,2]
[319452706,1710781840267,-267.66,0.00020373,2]
[319452709,1710781840277,-40679.55123613,0.00020643,5]
[319452712,1710781840286,-26539.16743434,0.00020643,30]
[319452715,1710781840297,-152.20152995,0.00020643,2]
[319452718,1710781840307,-152.20152995,0.00020643,2]
[319452721,1710781840316,-265.84,0.0002076,2]
[319452724,1710781840327,-155.489461,0.00020822,2]
[319452727,1710781840337,-3865.55,0.00021096,2]
[319452730,1710781840349,-773.12,0.00021096,2]
[319452733,1710781840361,-151.0,0.0002137,2]
[319452736,1710781840372,-150.0,0.0002152,2]
[319452740,1710781840382,-24095.13407428,0.00021532,2]
[319452744,1710781840392,-1000.0,0.00021557,2]
[319452746,1710781840402,-65293.13560763,0.00021597,2]
[319452750,1710781840412,-155.489461,0.00021644,2]
[319452753,1710781840422,-2603.83184,0.0002166,2]
[319452756,1710781840436,-1000.0,0.00021679,2]
[319452759,1710781840446,-1000.0,0.000217,2]
[319452762,1710781840456,-53587.83037591,0.0002178,2]
[319452765,1710781840466,-200.0,0.00021824,2]
[319452768,1710781840475,-800.0,0.00021824,2]
[319452772,1710781840486,-200.0,0.00021824,2]
[319452775,1710781840496,-200.0,0.00021824,2]
[319452778,1710781840506,-500.0,0.00021824,2]
[319452781,1710781840515,-200.0,0.00021824,2]
[319452784,1710781840527,-623.0,0.0002186,2]
[319452787,1710781840537,-292293.63928959,0.0002188,2]
[319452790,1710781840547,-331.96395506,0.0002188,7]
[319452793,1710781840556,-2198.08460813,0.0002188,2]
[319452796,1710781840568,-11333.26936624,0.0002188,4]
[319452799,1710781840578,-503.53524705,0.0002188,2]
[319452801,1710781840589,-904.7878744,0.0002188,2]
[319452802,1710781840599,-150.33,0.00021885,2]
[319452804,1710781840609,-29427.3085,0.00021888,2]
[319452806,1710781840619,-10000.0,0.00021888,2]
[319452808,1710781840629,-1655.0855,0.00021889,2]
[319452810,1710781840639,-2000.0,0.000219,2]
[319452811,1710781840649,-5679.0,0.000219,2]
[319452813,1710781840659,-1000.0,0.000219,2]
[319452815,1710781840669,-5172.0,0.000219,2]
[319452817,1710781840678,-700.0,0.000219,2]
[319452818,1710781840688,-500.0,0.00021917,2]
[319452821,1710781840701,-1343.22,0.00021917,2]
[319452822,1710781840710,-500.0,0.00021917,2]
[319452824,1710781840721,-2005.2,0.00021917,2]
[319452826,1710781840730,-500.0,0.00021917,2]
[319452828,1710781840741,-500.0,0.00021917,2]
[319452830,1710781840750,-500.0,0.00021917,2]
[319452831,1710781840760,-2489.15,0.00021917,2]
[319452833,1710781840770,-1156.73,0.00021917,2]
[319452834,1710781840780,-500.0,0.00021917,2]
[319452835,1710781840790,-500.0,0.00021917,2]
[319452836,1710781840800,-500.0,0.00021917,2]
[319452837,1710781840809,-500.0,0.00021917,2]
[319452838,1710781840820,-587.77,0.00021917,2]
[319452839,1710781840830,-500.0,0.00021917,2]
[319452840,1710781840841,-500.0,0.00021917,2]
[319452841,1710781840850,-500.0,0.00021917,2]
[319452842,1710781840860,-2245.28,0.00021917,2]
[319452843,1710781840869,-1244.07,0.00021917,2]
[319452844,1710781840881,-640.5,0.00021917,2]
[319452845,1710781840891,-1138.72,0.00021917,2]
[319452846,1710781840901,-1138.72,0.00021917,2]
[319452847,1710781840910,-1138.72,0.00021917,2]
[319452848,1710781840920,-500.0,0.00021917,2]
[319452849,1710781840929,-1138.72,0.00021917,2]
[319452850,1710781840939,-500.78149491,0.00021917,2]
[319452851,1710781840949,-1138.72,0.00021917,2]
[319452852,1710781840958,-1138.72,0.00021917,2]
[319452853,1710781840971,-1138.72,0.00021917,2]
[319452854,1710781840981,-1138.72,0.00021917,2]
[319452855,1710781840991,-1138.72,0.00021917,2]
[319452856,1710781841001,-1138.72,0.00021917,2]
[319452857,1710781841012,-1138.72,0.00021917,2]
[319452858,1710781841021,-1138.72,0.00021917,2]
[319452859,1710781841031,-1138.72,0.00021917,2]
[319452860,1710781841043,-1138.72,0.00021917,2]
[319452861,1710781841054,-1138.72,0.00021917,2]
[319452862,1710781841064,-1138.72,0.00021917,2]
[319452863,1710781841074,-500.0,0.00021917,2]
[319452864,1710781841084,-1138.72,0.00021917,2]
[319452865,1710781841096,-1105.98,0.00021917,2]
[319452866,1710781841106,-1138.72,0.00021917,2]
[319452867,1710781841116,-1138.72,0.00021917,2]
[319452868,1710781841126,-2306.37,0.00021917,2]
[319452869,1710781841137,-500.0,0.00021917,2]
[319452870,1710781841148,-1138.72,0.00021917,2]
[319452871,1710781841158,-1138.72,0.00021917,2]
[319452872,1710781841168,-1138.72,0.00021917,2]
[319452873,1710781841178,-1138.72,0.00021917,2]
[319452874,1710781841188,-1138.93244235,0.00021917,2]
[319452875,1710781841198,-535.85,0.00021917,2]
[319452876,1710781841209,-1754.36,0.00021917,2]
[319452877,1710781841219,-500.0,0.00021917,2]
[319452878,1710781841229,-500.0,0.00021917,2]
[319452879,1710781841239,-500.0,0.00021917,2]
[319452880,1710781841250,-508.41,0.00021917,2]
[319452881,1710781841550,-500.0,0.00021917,2]
[319452882,1710781841561,-500.0,0.00021917,2]
[319452883,1710781841571,-500.0,0.00021917,2]
[319452884,1710781841581,-500.0,0.00021917,2]
[319452885,1710781841592,-500.0,0.00021917,2]
[319452886,1710781841601,-500.0,0.00021917,2]
[319452887,1710781841610,-500.0,0.00021917,2]
[319452888,1710781841619,-1013.64,0.00021917,2]
[319452889,1710781841628,-500.0,0.00021917,2]
[319452890,1710781841637,-500.0,0.00021917,2]
[319452891,1710781841646,-500.0,0.00021917,2]
[319452892,1710781841655,-1204.69,0.00021917,2]
[319452893,1710781841665,-500.0,0.00021917,2]
[319452894,1710781841674,-1005.03,0.00021917,2]
[319452895,1710781841683,-500.0,0.00021917,2]
[319452896,1710781841692,-2366.66,0.00021917,2]
[319452897,1710781841701,-500.0,0.00021917,2]
[319452898,1710781841710,-1546.08,0.00021917,2]
[319452899,1710781841719,-650.87,0.00021917,2]
[319452900,1710781841728,-500.0,0.00021917,2]
[319452901,1710781841739,-500.0,0.00021917,2]
[319452902,1710781841750,-520.91,0.00021917,2]
[319452903,1710781841760,-3507.41,0.00021917,2]
[319452904,1710781841769,-1142.91,0.00021917,2]
[319452905,1710781841778,-674.91,0.00021917,2]
[319452906,1710781841787,-500.0,0.00021917,2]
[319452907,1710781841797,-500.0,0.00021917,2]
[319452908,1710781841806,-500.0,0.00021917,2]
[319452909,1710781841815,-736.15,0.00021917,2]
[319452910,1710781841824,-891.78,0.00021917,2]
[319452911,1710781841833,-3040.48,0.00021917,2]
[319452912,1710781841845,-500.0,0.00021917,2]
[319452913,1710781841854,-500.0,0.00021917,2]
[319452914,1710781841863,-500.0,0.00021917,2]
[319452915,1710781841873,-500.0,0.00021917,2]
[319452916,1710781841882,-572.95,0.00021917,2]
[319452917,1710781841891,-495.10981997,0.00021917,2]
[319452918,1710781841900,-500.0,0.00021917,2]
[319452919,1710781841909,-500.0,0.00021917,2]
[319452920,1710781841918,-500.0,0.00021917,2]
[319452921,1710781841928,-579.0,0.00021917,2]
[319452922,1710781841937,-500.0,0.00021917,2]
[319452923,1710781841947,-500.0,0.00021917,2]
[319452924,1710781841956,-637.7,0.00021917,2]
[319452925,1710781841966,-500.0,0.00021917,2]
[319452926,1710781841975,-500.0,0.00021917,2]
[319452927,1710781841984,-500.0,0.00021917,2]